fUSD/lending_fUSD_20240617
["ID","MTS","AMOUNT","RATE_DAILY","PERIOD"]
[329766122,1718655059873,-563.0,0.00022465,3]
[329766123,1718655059885,-721.59,0.00022465,3]
[329766124,1718655059895,-500.0,0.00022465,3]
[329766125,1718655059904,-585.25,0.00022465,3]
[329766126,1718655059914,-500.0,0.00022465,3]
[329766127,1718655059929,-965.86,0.00022465,3]
[329766128,1718655059939,-500.0,0.00022465,3]
[329766129,1718655059948,-500.0,0.00022465,3]
[329766130,1718655059959,-664.46,0.00022465,3]
[329766131,1718655059969,-500.0,0.00022465,3]
[329766132,1718655059978,-500.0,0.00022465,3]
[329766133,1718655059987,-500.0,0.00022465,3]
[329766134,1718655059999,-1017.36,0.00022465,3]
[329766135,1718655060008,-500.0,0.00022465,3]
[329766136,1718655060018,-500.0,0.00022465,3]
[329766137,1718655060028,-500.0,0.00022465,3]
[329766138,1718655060038,-535.85,0.00022465,3]
[329766139,1718655060048,-500.0,0.00022465,3]
[329766140,1718655060057,-500.0,0.00022465,3]
[329766141,1718655060067,-500.0,0.00022465,3]
[329766142,1718655060077,-500.0,0.00022465,3]
[329766143,1718655060088,-500.0,0.00022465,3]
[329766144,1718655060098,-500.0,0.00022465,3]
[329766145,1718655060108,-500.0,0.00022465,3]
[329766146,1718655060117,-500.0,0.00022465,3]
[329766147,1718655060127,-500.0,0.00022465,3]
[329766148,1718655060140,-500.0,0.00022465,3]
[329766149,1718655060149,-500.0,0.00022465,3]
[329766150,1718655060159,-710.15,0.00022465,3]
[329766151,1718655060168,-500.0,0.00022465,3]
[329766152,1718655060178,-500.0,0.00022465,3]
[329766153,1718655060188,-610.68768401,0.00022465,3]
[329766154,1718655060197,-513.55,0.00022465,3]
[329766155,1718655060207,-199.42084489,0.00022465,3]
[329766156,1718655060217,-731.53,0.00022465,3]
[329766157,1718655060227,-500.0,0.00022465,3]
[329766158,1718655060236,-500.0,0.00022465,3]
[329766159,1718655060246,-500.0,0.00022465,3]
[329766160,1718655060256,-583.44,0.00022465,3]
[329766161,1718655060265,-562.97,0.00022465,3]
[329766162,1718655060275,-500.0,0.00022465,3]
[329766163,1718655060285,-500.0,0.00022465,3]
[329766164,1718655060296,-575.73,0.00022465,3]
[329766165,1718655060306,-500.0,0.00022465,3]
[329766166,1718655060317,-600.12,0.00022465,3]
[329766167,1718655060326,-500.0,0.00022465,3]
[329766168,1718655060336,-1645.93,0.00022465,3]
[329766169,1718655060347,-547.03758105,0.00022465,3]
[329766170,1718655060356,-502.0,0.00022465,3]
[329766171,1718655060366,-830.15,0.00022465,3]
[329766172,1718655060376,-500.0,0.00022465,2]
[329766173,1718655060389,-500.0,0.00022465,3]
[329766174,1718655060402,-1465.51,0.00022465,3]
[329766175,1718655060411,-568.122188,0.00022465,3]
[329766176,1718655060421,-500.0,0.00022465,3]
[329766177,1718655060430,-802.14,0.00022465,3]
[329766178,1718655060440,-500.0,0.00022465,3]
[329766179,1718655060450,-620.19,0.00022465,3]
[329766180,1718655060460,-500.0,0.00022465,3]
[329766181,1718655060469,-868.67,0.00022465,3]
[329766182,1718655060479,-500.0,0.00022465,3]
[329766183,1718655060490,-632.6,0.00022465,3]
[329766184,1718655060500,-500.0,0.00022465,3]
[329766185,1718655060510,-500.0,0.00022465,3]
[329766186,1718655060520,-500.0,0.00022465,3]
[329766187,1718655060529,-500.0,0.00022465,3]
[329766188,1718655060539,-584.28,0.00022465,3]
[329766189,1718655060549,-500.0,0.00022465,3]
[329766190,1718655060559,-688.51,0.00022465,3]
[329766191,1718655060569,-500.0,0.00022465,3]
[329766192,1718655060579,-500.0,0.00022465,3]
[329766193,1718655060588,-500.0,0.00022465,3]
[329766194,1718655060598,-500.0,0.00022465,3]
[329766195,1718655060608,-500.0,0.00022465,3]
[329766196,1718655060618,-500.0,0.00022465,3]
[329766197,1718655060627,-500.0,0.00022465,3]
[329766198,1718655060644,-500.0,0.00022465,3]
[329766199,1718655060654,-2210.59,0.00022465,3]
[329766200,1718655060663,-500.0,0.00022465,3]
[329766201,1718655060672,-673.37,0.00022465,3]
[329766202,1718655060684,-469.531274,0.00022465,3]
[329766203,1718655060694,-500.0,0.00022465,3]
[329766204,1718655060703,-500.0,0.00022465,3]
[329766205,1718655060713,-922.9,0.00022465,3]
[329766206,1718655060723,-500.0,0.00022465,3]
[329766207,1718655060732,-500.0,0.00022465,3]
[329766208,1718655060742,-1006.95,0.00022465,3]
[329766209,1718655060751,-500.0,0.00022465,3]
[329766210,1718655060760,-1403.23,0.00022465,3]
[329766211,1718655060771,-500.0,0.00022465,3]
[329766212,1718655060782,-820.39,0.00022465,3]
[329766213,1718655060792,-500.0,0.00022465,3]
[329766214,1718655060802,-1740.8,0.00022465,3]
[329766215,1718655060813,-549.68,0.00022465,3]
[329766216,1718655060823,-581.19,0.00022465,3]
[329766217,1718655060832,-500.0,0.00022465,3]
[329766218,1718655060842,-1131.94,0.00022465,3]
[329766219,1718655060851,-500.0,0.00022465,3]
[329766220,1718655060861,-500.0,0.00022465,3]
[329766221,1718655060870,-500.0,0.00022465,3]
[329766222,1718655060879,-500.0,0.00022465,3]
[329766223,1718655060894,-1641.36,0.00022465,3]
[329766224,1718655060904,-554.05,0.00022465,3]
[329766225,1718655060916,-1272.12,0.00022465,3]
[329766226,1718655061088,-573.9,0.00022465,3]
[329766227,1718655061098,-507.26,0.00022465,3]
[329766228,1718655061107,-1106.42,0.00022465,3]
[329766229,1718655061117,-587.71,0.00022465,3]
[329766230,1718655061128,-500.0,0.00022465,3]
[329766231,1718655061142,-513.98,0.00022465,3]
[329766232,1718655061152,-863.28,0.00022465,3]
[329766233,1718655061161,-1003.69,0.00022465,3]
[329766234,1718655061171,-500.0,0.00022465,3]
[329766235,1718655061180,-527.72,0.00022465,3]
[329766236,1718655061189,-735.1,0.00022465,3]
[329766237,1718655061198,-844.07,0.00022465,3]
[329766238,1718655061208,-500.0,0.00022465,3]
[329766239,1718655061218,-804.4,0.00022465,3]
[329766240,1718655061227,-519.97,0.00022465,3]
[329766241,1718655061237,-1072.33,0.00022465,3]
[329766242,1718655061247,-522.42,0.00022465,3]
[329766243,1718655061257,-1101.55,0.00022465,3]
[329766244,1718655061266,-500.0,0.00022465,3]
[329766245,1718655061276,-557.97,0.00022465,3]
[329766246,1718655061286,-500.0,0.00022465,3]
[329766247,1718655061295,-530.98,0.00022465,3]
[329766248,1718655061304,-588.02734636,0.00022465,3]
[329766249,1718655061314,-1013.31,0.00022465,3]
[329766250,1718655061323,-500.0,0.00022465,3]
[329766251,1718655061333,-500.0,0.00022465,3]
[329766252,1718655061342,-586.81,0.00022465,3]
[329766253,1718655061352,-500.0,0.00022465,3]
[329766254,1718655061362,-500.0,0.00022465,3]
[329766255,1718655061372,-500.0,0.00022465,3]
[329766256,1718655061384,-627.61,0.00022465,3]
[329766257,1718655061394,-500.0,0.00022465,3]
[329766258,1718655061403,-1063.04,0.00022465,3]
[329766259,1718655061413,-500.0,0.00022465,3]
[329766260,1718655061422,-500.0,0.00022465,3]
[329766261,1718655061432,-1441.72,0.00022465,3]
[329766262,1718655061442,-500.0,0.00022465,3]
[329766263,1718655061452,-500.0,0.00022465,3]
[329766264,1718655061462,-500.0,0.00022465,3]
[329766265,1718655061472,-4898.23,0.00022465,3]
[329766266,1718655061482,-500.0,0.00022465,3]
[329766267,1718655061492,-990.29,0.00022465,3]
[329766268,1718655061501,-647.46,0.00022465,3]
[329766269,1718655061511,-609.7,0.00022465,3]
[329766270,1718655061522,-500.0,0.00022465,3]
[329766271,1718655061531,-500.0,0.00022465,3]
[329766272,1718655061541,-625.94,0.00022465,3]
[329766273,1718655061550,-500.0,0.00022465,3]
[329766274,1718655061560,-780.9,0.00022465,3]
[329766275,1718655061569,-920.35,0.00022465,3]
[329766276,1718655061579,-553.10139018,0.00022465,3]
[329766277,1718655061588,-573.3,0.00022465,3]
[329766278,1718655061598,-957.57,0.00022465,3]
[329766279,1718655061609,-1338.02,0.00022465,3]
[329766280,1718655061619,-725.77,0.00022465,3]
[329766281,1718655061628,-500.0,0.00022465,3]
[329766282,1718655061640,-1320.65,0.00022465,3]
[329766283,1718655061650,-725.02,0.00022465,3]
[329766284,1718655061659,-500.0,0.00022465,3]
[329766285,1718655061668,-161.30792977,0.00022465,3]
[329766286,1718655061678,-1125.17,0.00022465,3]
[329766287,1718655061688,-728.35,0.00022465,3]
[329766288,1718655061698,-500.0,0.00022465,3]
[329766289,1718655061707,-500.0,0.00022465,3]
[329766290,1718655061717,-500.0,0.00022465,3]
[329766291,1718655061727,-250.91934782,0.00022465,3]
[329766292,1718655061736,-747.31,0.00022465,3]
[329766293,1718655061746,-521.17,0.00022465,3]
[329766294,1718655061756,-500.0,0.00022465,3]
[329766295,1718655061765,-500.0,0.00022465,3]
[329766296,1718655061774,-2201.43,0.00022465,3]
[329766297,1718655061784,-500.0,0.00022465,3]
[329766298,1718655061793,-500.0,0.00022465,3]
[329766299,1718655061802,-500.0,0.00022465,3]
[329766300,1718655061812,-500.0,0.00022465,3]
[329766301,1718655061821,-500.0,0.00022465,3]
[329766302,1718655061830,-675.62,0.00022465,3]
[329766303,1718655061839,-500.0,0.00022465,3]
[329766304,1718655061849,-934.88,0.00022465,3]
[329766305,1718655061858,-1197.44,0.00022465,3]
[329766306,1718655061867,-500.04218274,0.00022465,3]
[329766307,1718655061877,-500.0,0.00022465,3]
[329766308,1718655061893,-500.0,0.00022465,3]
[329766309,1718655061902,-560.21,0.00022465,3]
[329766310,1718655061911,-500.0,0.00022465,3]
[329766311,1718655061925,-894.66,0.00022465,3]
[329766312,1718655061934,-500.0,0.00022465,3]
[329766313,1718655061943,-637.55,0.00022465,3]
[329766314,1718655061951,-500.0,0.00022465,3]
[329766315,1718655061962,-984.49,0.00022465,3]
[329766316,1718655061972,-500.0,0.00022465,3]
[329766317,1718655061981,-500.0,0.00022465,3]
[329766318,1718655061990,-777.2,0.00022465,3]
[329766319,1718655061998,-500.0,0.00022465,3]
[329766320,1718655062010,-500.0,0.00022465,3]
[329766321,1718655062019,-500.0,0.00022465,3]
[329766322,1718655062028,-571.46,0.00022465,3]
[329766323,1718655062037,-500.0,0.00022465,3]
[329766324,1718655062048,-246.49745767,0.00022465,3]
[329766325,1718655062057,-500.0,0.00022465,3]
[329766326,1718655062066,-662.63,0.00022465,3]
[329766327,1718655062076,-500.0,0.00022465,3]
[329766328,1718655062085,-1103.15,0.00022465,3]
[329766329,1718655062094,-1119.61,0.00022465,3]
[329766330,1718655062105,-500.0,0.00022465,3]
[329766331,1718655062114,-758.44,0.00022465,3]
[329766332,1718655062123,-500.0,0.00022465,3]
[329766333,1718655062135,-500.0,0.00022465,3]
[329766334,1718655062155,-500.0,0.00022465,3]
[329766335,1718655062171,-500.0,0.00022465,3]
[329766336,1718655062190,-500.0,0.00022465,3]
[329766337,1718655062210,-500.0,0.00022465,3]
[329766338,1718655062227,-500.0,0.00022465,3]
[329766339,1718655062245,-500.0,0.00022465,3]
[329766340,1718655062261,-721.59,0.00022465,3]
[329766341,1718655062278,-1072.75,0.00022465,3]
[329766342,1718655062296,-582.39,0.00022465,3]
[329766343,1718655062317,-500.0,0.00022465,3]
[329766344,1718655062329,-500.0,0.00022465,3]
[329766345,1718655062347,-500.0,0.00022465,3]
[329766346,1718655062363,-500.0,0.00022465,3]
[329766347,1718655062380,-500.0,0.00022465,3]
[329766348,1718655062398,-1063.04,0.00022465,3]
[329766349,1718655062413,-500.0,0.00022465,3]
[329766350,1718655062428,-500.0,0.00022465,2]
[329766351,1718655062442,-539.10090902,0.00022465,3]
[329766352,1718655062461,-550.92,0.00022465,3]
[329766353,1718655062476,-873.07,0.00022465,3]
[329766354,1718655062491,-223.155602,0.00022465,7]
[329766355,1718655062506,-500.0,0.00022465,3]
[329766356,1718655062521,-1027.24,0.00022465,3]
[329766357,1718655062536,-548.84455555,0.00022465,3]
[329766358,1718655062551,-500.0,0.00022465,3]
[329766359,1718655062567,-1156.84,0.00022465,3]
[329766360,1718655062581,-572.81,0.00022465,3]
[329766361,1718655062596,-500.0,0.00022465,3]
[329766362,1718655062611,-1051.38,0.00022465,3]
[329766363,1718655062625,-500.0,0.00022465,3]
[329766364,1718655062643,-500.0,0.00022465,3]
[329766365,1718655062658,-799.04,0.00022465,3]
[329766366,1718655062673,-500.0,0.00022465,3]
[329766367,1718655062689,-500.0,0.00022465,3]
[329766368,1718655062703,-500.0,0.00022465,3]
[329766369,1718655062718,-1234.49,0.00022465,3]
[329766370,1718655062733,-500.0,0.00022465,3]
[329766371,1718655062748,-500.0,0.00022465,3]
[329766372,1718655062763,-642.39759892,0.00022465,3]
[329766373,1718655062778,-642.14,0.00022465,3]
[329766374,1718655062793,-716.47,0.00022465,3]
[329766375,1718655062807,-500.0,0.00022465,3]
[329766376,1718655062822,-1229.97,0.00022465,3]
[329766377,1718655062837,-891.83,0.00022465,3]
[329766378,1718655062852,-500.0,0.00022465,3]
[329766379,1718655062866,-538.86,0.00022465,3]
[329766380,1718655062881,-2138.98,0.00022465,3]
[329766381,1718655062898,-574.45,0.00022465,3]
[329766382,1718655062913,-500.0,0.00022465,3]
[329766383,1718655062935,-523.71108588,0.00022465,3]
[329766384,1718655062950,-202.0,0.00022465,3]
[329766385,1718655062966,-500.0,0.00022465,3]
[329766386,1718655062983,-1097.39,0.00022465,3]
[329766387,1718655062998,-1565.76,0.00022465,3]
[329766388,1718655063018,-500.0,0.00022465,3]
[329766389,1718655063033,-500.0,0.00022465,3]
[329766390,1718655063048,-894.87,0.00022465,3]
[329766391,1718655063062,-500.0,0.00022465,3]
[329766392,1718655063078,-500.0,0.00022465,3]
[329766393,1718655063093,-500.0,0.00022465,3]
[329766394,1718655063108,-500.0,0.00022465,3]
[329766395,1718655063123,-637.62,0.00022465,3]
[329766396,1718655063138,-646.63,0.00022465,3]
[329766397,1718655063152,-964.22,0.00022465,3]
[329766398,1718655063167,-1149.95,0.00022465,3]
[329766399,1718655063182,-170.40116812,0.00022465,3]
[329766400,1718655063197,-591.68,0.00022465,3]
[329766401,1718655063212,-520.37,0.00022465,3]
[329766402,1718655063228,-1218.34,0.00022465,3]
[329766403,1718655063244,-1197.43,0.00022465,3]
[329766404,1718655063258,-956.48,0.00022465,3]
[329766405,1718655063273,-1314.01,0.00022465,3]
[329766406,1718655063288,-206.10036607,0.00022465,3]
[329766407,1718655063302,-500.0,0.00022465,3]
[329766408,1718655063319,-905.53,0.00022465,3]
[329766409,1718655063332,-389.85514921,0.00022465,3]
[329766410,1718655063342,-778.47,0.00022465,3]
[329766411,1718655063351,-500.0,0.00022465,3]
[329766412,1718655063361,-500.0,0.00022465,3]
[329766413,1718655063371,-2002.5,0.00022465,3]
[329766414,1718655063380,-500.0,0.00022465,3]
[329766415,1718655063395,-500.0,0.00022465,3]
[329766416,1718655063404,-500.0,0.00022465,3]
[329766417,1718655063413,-500.0,0.00022465,3]
[329766418,1718655063423,-1117.86,0.00022465,3]
[329766419,1718655063432,-1647.55,0.00022465,3]
[329766420,1718655063442,-500.0,0.00022465,3]
[329766421,1718655063451,-970.91,0.00022465,3]
[329766422,1718655063461,-500.0,0.00022465,3]
[329766423,1718655063470,-500.0,0.00022465,3]
[329766424,1718655063480,-602.27,0.00022465,3]
[329766425,1718655063490,-995.64,0.00022465,3]
[329766426,1718655063499,-500.0,0.00022465,3]
[329766427,1718655063508,-500.0,0.00022465,3]
[329766428,1718655063519,-500.0,0.00022465,3]
[329766429,1718655063529,-734.65,0.00022465,3]
[329766430,1718655063538,-500.0,0.00022465,3]
[329766431,1718655063548,-1231.47,0.00022465,3]
[329766432,1718655063557,-500.0,0.00022465,3]
[329766433,1718655063567,-500.0,0.00022465,3]
[329766434,1718655063576,-500.0,0.00022465,3]
[329766435,1718655063586,-1037.66,0.00022465,3]
[329766436,1718655063596,-1520.38,0.00022465,3]
[329766437,1718655063606,-1095.19,0.00022465,3]
[329766438,1718655064008,-2024.24,0.00022465,3]
[329766439,1718655064043,-500.0,0.00022465,3]
[329766440,1718655064063,-500.0,0.00022465,3]
[329766441,1718655064073,-649.56,0.00022465,3]
[329766442,1718655064083,-500.0,0.00022465,3]
[329766443,1718655064092,-500.0,0.00022465,3]
[329766444,1718655064103,-512.47,0.00022465,3]
[329766445,1718655064112,-832.4,0.00022465,3]
[329766446,1718655064122,-526.59907121,0.00022465,3]
[329766447,1718655064131,-755.31,0.00022465,3]
[329766448,1718655064147,-500.0,0.00022465,3]
[329766449,1718655064156,-587.85,0.00022465,3]
[329766450,1718655064165,-2230.89,0.00022465,3]
[329766451,1718655064175,-1019.25,0.00022465,3]
[329766452,1718655064184,-500.0,0.00022465,3]
[329766453,1718655064194,-500.0,0.00022465,3]
[329766454,1718655064203,-1033.59,0.00022465,3]
[329766455,1718655064212,-669.26,0.00022465,3]
[329766456,1718655064222,-297.29869652,0.00022465,3]
[329766457,1718655064231,-500.0,0.00022465,3]
[329766458,1718655064240,-500.0,0.00022465,3]
[329766459,1718655064250,-1096.66,0.00022465,3]
[329766460,1718655064260,-500.0,0.00022465,3]
[329766461,1718655064269,-227.37660001,0.00022465,3]
[329766462,1718655064279,-783.79,0.00022465,3]
[329766463,1718655064288,-500.0,0.00022465,3]
[329766464,1718655064298,-500.0,0.00022465,3]
[329766465,1718655064307,-1714.94,0.00022465,3]
[329766466,1718655064316,-831.46,0.00022465,3]
[329766467,1718655064326,-1169.92,0.00022465,3]
[329766468,1718655064335,-647.8,0.00022465,3]
[329766469,1718655064344,-500.0,0.00022465,3]
[329766470,1718655064354,-500.0,0.00022465,3]
[329766471,1718655064363,-500.0,0.00022465,3]
[329766472,1718655064373,-820.0,0.00022465,3]
[329766473,1718655064383,-851.77,0.00022465,3]
[329766474,1718655064395,-897.74,0.00022465,3]
[329766475,1718655064405,-1487.78,0.00022465,3]
[329766476,1718655064414,-1903.59,0.00022465,3]
[329766477,1718655064424,-833.65,0.00022465,3]
[329766478,1718655064433,-151.0,0.00022465,7]
[329766479,1718655064443,-151.0,0.00022465,7]
[329766480,1718655064453,-522.9,0.00022465,3]
[329766481,1718655064463,-500.0,0.00022465,3]
[329766482,1718655064472,-500.0,0.00022465,3]
[329766483,1718655064481,-551.41,0.00022465,3]
[329766484,1718655064491,-662.66,0.00022465,3]
[329766485,1718655064500,-500.0,0.00022465,3]
[329766486,1718655064509,-500.0,0.00022465,3]
[329766487,1718655064518,-500.0,0.00022465,3]
[329766488,1718655064528,-1060.27,0.00022465,3]
[329766489,1718655064537,-500.0,0.00022465,3]
[329766490,1718655064547,-1673.12,0.00022465,3]
[329766491,1718655064556,-1000.83,0.00022465,3]
[329766492,1718655064566,-500.0,0.00022465,3]
[329766493,1718655064575,-500.0,0.00022465,3]
[329766494,1718655064585,-500.0,0.00022465,3]
[329766495,1718655064594,-500.0,0.00022465,3]
[329766496,1718655064603,-1426.72,0.00022465,3]
[329766497,1718655064613,-547.41,0.00022465,3]
[329766498,1718655064622,-740.35,0.00022465,3]
[329766499,1718655064631,-500.0,0.00022465,3]
[329766500,1718655064643,-500.0,0.00022465,3]
[329766501,1718655064652,-500.0,0.00022465,3]
[329766502,1718655064661,-514.29186605,0.00022465,3]
[329766503,1718655064670,-500.0,0.00022465,3]
[329766504,1718655064679,-1104.7,0.00022465,3]
[329766505,1718655064688,-1126.98,0.00022465,3]
[329766506,1718655064698,-500.0,0.00022465,3]
[329766507,1718655064708,-500.0,0.00022465,3]
[329766508,1718655064717,-927.98,0.00022465,3]
[329766509,1718655064727,-557.09,0.00022465,3]
[329766510,1718655064736,-500.0,0.00022465,3]
[329766511,1718655064745,-500.0,0.00022465,3]
[329766512,1718655064754,-2390.59,0.00022465,3]
[329766513,1718655064764,-500.0,0.00022465,3]
[329766514,1718655064773,-500.0,0.00022465,3]
[329766515,1718655064782,-1967.52,0.00022465,3]
[329766516,1718655064791,-500.0,0.00022465,3]
[329766517,1718655064800,-897.99,0.00022465,3]
[329766518,1718655064810,-16132.6,0.00022465,3]
[329766519,1718655064819,-1656.89,0.00022465,3]
[329766520,1718655064828,-500.0,0.00022465,3]
[329766521,1718655064837,-500.0,0.00022465,3]
[329766522,1718655064846,-1000.0,0.00022465,3]
[329766523,1718655064855,-796.08,0.00022465,3]
[329766524,1718655064865,-1412.7,0.00022465,3]
[329766525,1718655064874,-500.0,0.00022465,3]
[329766526,1718655064883,-7472.77,0.00022465,3]
[329766527,1718655064894,-1238.52,0.00022465,3]
[329766528,1718655064903,-500.0,0.00022465,3]
[329766529,1718655064912,-500.0,0.00022465,3]
[329766530,1718655064926,-621.92,0.00022465,3]
[329766531,1718655064936,-500.0,0.00022465,3]
[329766532,1718655064946,-914.92,0.00022465,3]
[329766533,1718655064955,-2571.23,0.00022465,3]
[329766534,1718655064966,-1117.25,0.00022465,3]
[329766535,1718655064975,-500.0,0.00022465,3]
[329766536,1718655064985,-500.0,0.00022465,3]
[329766537,1718655064994,-500.0,0.00022465,3]
[329766538,1718655065003,-13197.41,0.00022465,3]
[329766539,1718655065015,-946.94,0.00022465,3]
[329766540,1718655065024,-500.0,0.00022465,3]
[329766541,1718655065033,-1875.65,0.00022465,3]
[329766542,1718655065043,-813.43,0.00022465,3]
[329766543,1718655065052,-500.0,0.00022465,3]
[329766544,1718655065062,-522.52,0.00022465,3]
[329766545,1718655065071,-553.05,0.00022465,3]
[329766546,1718655065080,-500.0,0.00022465,3]
[329766547,1718655065089,-500.0,0.00022465,3]
[329766548,1718655065098,-500.0,0.00022465,3]
[329766549,1718655065107,-500.0,0.00022465,3]
[329766550,1718655065117,-5402.77,0.00022465,3]
[329766551,1718655065126,-720.62,0.00022465,3]
[329766552,1718655065135,-500.0,0.00022465,3]
[329766553,1718655065146,-1551.55,0.00022465,3]
[329766554,1718655065155,-2238.69,0.00022465,3]
[329766555,1718655065164,-500.0,0.00022465,3]
[329766556,1718655065173,-500.0,0.00022465,3]
[329766557,1718655065183,-557.88,0.00022465,3]
[329766558,1718655065192,-18890.95,0.00022465,3]
[329766559,1718655065201,-500.0,0.00022465,3]
[329766560,1718655065211,-500.0,0.00022465,3]
[329766561,1718655065220,-1851.86,0.00022465,3]
[329766562,1718655065229,-2058.77,0.00022465,3]
[329766563,1718655065238,-500.0,0.00022465,3]
[329766564,1718655065248,-599.27,0.00022465,3]
[329766565,1718655065257,-630.1,0.00022465,3]
[329766566,1718655065266,-550.47,0.00022465,3]
[329766567,1718655065275,-209.14706856,0.00022465,3]
[329766568,1718655065285,-500.0,0.00022465,3]
[329766569,1718655065294,-500.0,0.00022465,3]
[329766570,1718655065303,-544.05,0.00022465,3]
[329766571,1718655065313,-51232.87,0.00022465,3]
[329766572,1718655065322,-4384.76,0.00022465,3]
[329766573,1718655065331,-1257.44,0.00022465,3]
[329766574,1718655065341,-2410.15,0.00022465,3]
[329766575,1718655065350,-500.0,0.00022465,3]
[329766576,1718655065359,-674.02,0.00022465,3]
[329766577,1718655065369,-2098.41,0.00022465,3]
[329766578,1718655065379,-636.4,0.00022465,3]
[329766579,1718655065391,-500.0,0.00022465,3]
[329766580,1718655065400,-554.93,0.00022465,3]
[329766581,1718655065409,-1023.82,0.00022465,3]
[329766582,1718655065419,-1702.99,0.00022465,3]
[329766583,1718655065428,-500.0,0.00022465,3]
[329766584,1718655065437,-782.2,0.00022465,3]
[329766585,1718655065447,-1281.04,0.00022465,3]
[329766586,1718655065456,-3105.55,0.00022465,3]
[329766587,1718655065465,-500.0,0.00022465,3]
[329766588,1718655065474,-2034.48,0.00022465,3]
[329766589,1718655065483,-5775.46,0.00022465,3]
[329766590,1718655065493,-500.0,0.00022465,3]
[329766591,1718655065502,-733.85,0.00022465,3]
[329766592,1718655065512,-500.0,0.00022465,3]
[329766593,1718655065523,-1194.63,0.00022465,3]
[329766594,1718655065532,-625.68337435,0.00022465,3]
[329766595,1718655065541,-500.0,0.00022465,3]
[329766596,1718655065551,-2718.63,0.00022465,3]
[329766597,1718655065560,-8186.16,0.00022465,3]
[329766598,1718655065570,-584.58,0.00022465,3]
[329766599,1718655065579,-1024.29,0.00022465,3]
[329766600,1718655065589,-500.0,0.00022465,3]
[329766601,1718655065599,-3637.62,0.00022465,3]
[329766602,1718655065608,-500.0,0.00022465,3]
[329766603,1718655065617,-989.18,0.00022465,3]
[329766604,1718655065626,-500.0,0.00022465,3]
[329766605,1718655065638,-555.13,0.00022465,3]
[329766606,1718655065648,-947.75,0.00022465,3]
[329766607,1718655065657,-5852.37,0.00022465,3]
[329766608,1718655065667,-3682.79,0.00022465,3]
[329766609,1718655065676,-500.0,0.00022465,3]
[329766610,1718655065685,-3919.01,0.00022465,3]
[329766611,1718655065694,-1372.03,0.00022465,3]
[329766612,1718655065704,-500.0,0.00022465,3]
[329766613,1718655065713,-1815.51,0.00022465,3]
[329766614,1718655065723,-720.36,0.00022465,3]
[329766615,1718655065731,-1648.11,0.00022465,3]
[329766616,1718655065740,-952.73,0.00022465,3]
[329766617,1718655065750,-7652.84,0.00022465,3]
[329766618,1718655065759,-25074.39,0.00022465,3]
[329766619,1718655065768,-1806.48,0.00022465,3]
[329766620,1718655065778,-500.0,0.00022465,3]
[329766621,1718655065788,-6532.67,0.00022465,3]